{"text_format":"1","workbook":"xlsx","n_sheets":3,"sheets":["Dashboard","Bodega de datos","Tablas dinámicas"],"not_rendered":{"charts":5,"images":31,"macros":1,"external_links":1,"defined_names":1,"comments":0,"pivot_tables":14},"unopened":[],"bounds":{"document_bytes":16777216,"sheet_cells":100000,"rows_first":2000,"rows_last":500,"rows_between":2000,"halvings":0,"cell_chars":16384,"cell_head_chars":4096},"cells_cut":0,"cells_raw":0,"read":"whole","date_system":"1900"}

{"sheet":"Dashboard","index":0,"n_rows":49,"n_cols":21,"rows_kept":49,"cut":false,"hidden":false,"merged":[[48,20,49,23]]}
[]
[]
[]
[]
[]
[]
[]
[]
[]
[]
[]
[]
[]
[]
[]
[]
[]
[]
[]
[]
[]
[]
[]
[]
[]
[]
[]
[]
[]
[]
[]
[]
[]
[]
[]
[]
[]
[]
[]
[]
[]
[]
[]
[]
[]
[]
[]
[]
[null,null,null,null,null,null,null,null,null,null,null,null,null,null,null,null,null,null,null,null,"Actualizar base de datos"]

{"sheet":"Bodega de datos","index":1,"n_rows":16,"n_cols":43,"rows_kept":16,"cut":false,"hidden":false,"merged":[[1,31,1,41],[1,1,1,8],[1,11,1,19],[1,21,1,30],[0,1,0,2]]}
[null,"Actualizar tabla "]
[null,"Canal de atención a la ciudadanía",null,null,null,null,null,null,null,null,null,"Entidad destinataria de la pqrsd que se está trasladando",null,null,null,null,null,null,null,null,null,"Tipología de las pqrs pendientes de trámite",null,null,null,null,null,null,null,null,null,"PQRSD pendientes de trámite por dependencia del DADEP"]
["Mes","Presencial","Telefónico","Redes sociales","Chat","Correo electrónico","Ventanilla de radicación","Buzón de sugerencias","Bogotá te escucha","Pqrs recibidas","Pqrs trasladadas","Secretaría de Movilidad","Secretaría de Desarrollo Económico","Secretaría de Gobierno","Secretaría de Ambiente","Secretaría de Habitat","Instituto para la Economía Social - IPES","Instituto Distrital de Recreación y Deporte -IDRD","Instituto Distrital de Participación y Acción Comunal - IDPAC","Otra entidad destinataria","Pqrs pendientes de trámite al final de cada mes","derecho de petición de interés particular","derecho de petición de interés general","reclamo","queja","solicitud de acceso a la información","consulta","felicitación","solicitud de copias","sugerencias","denuncia por actos de corrupción","Dirección","Subdirección de Registro Inmobiliario","Subdirección de Gestión Inmobiliaria y de Espacio Público","Subdirección de Gestión Corporativa","Oficina de  Control Disciplinario","Oficina Jurídica","Oficina Asesora de Planeación","Oficina de tecnologias de las informacion y las comunicaciones ","Atención al ciudadano","Oficina de Control Interno","total","Columna1"]
["enero",118,198,20,27,1109,5,0,270,270,224,15,2,114,8,0,24,4,1,56,51,22,19,1,2,1,6,0,0,0,0,0,12,34,0,0,0,0,0,5,0,{"$f":"+Tabla1[[#This Row],[Dirección]]+Tabla1[[#This Row],[Subdirección de Registro Inmobiliario]]+Tabla1[[#This Row],[Subdirección de Gestión Inmobiliaria y de Espacio Público]]+Tabla1[[#This Row],[Oficina de  Control Disciplinario]]+Tabla1[[#This Row],[Oficina Jurídica]]+Tabla1[[#This Row],[Oficina Asesora de Planeación]]+Tabla1[[#This Row],[Oficina de tecnologias de las informacion y las comunicaciones ]]+Tabla1[[#This Row],[Oficina de Control Interno]]+Tabla1[[#This Row],[Atención al ciudadano]]+Tabla1[[#This Row],[Subdirección de Gestión Corporativa]]","v":51},{"$f":"+Tabla1[[#This Row],[Pqrs pendientes de trámite al final de cada mes]]","v":51}]
["febrero",162,247,15,45,1194,3,0,386,386,289,11,0,182,3,0,29,10,1,53,61,40,16,0,4,0,0,0,0,0,1,1,14,39,0,1,2,0,0,4,0,{"$f":"+[1]!Tabla1[[#This Row],[Dirección]]+[1]!Tabla1[[#This Row],[Subdirección de Registro Inmobiliario]]+[1]!Tabla1[[#This Row],[Subdirección de Gestión Inmobiliaria y de Espacio Público]]+[1]!Tabla1[[#This Row],[Oficina de  Control Disciplinario Interno]]+[1]!Tabla1[[#This Row],[Oficina Jurídica]]+[1]!Tabla1[[#This Row],[Oficina Asesora de Planeación]]+[1]!Tabla1[[#This Row],[Oficina de tecnologias de las informacion y las comunicaciones ]]+[1]!Tabla1[[#This Row],[Oficina de Control Interno]]+[1]!Tabla1[[#This Row],[Atención al ciudadano]]+[1]!Tabla1[[#This Row],[Subdirección de Gestión Corporativa]]","v":61},{"$f":"+[1]!Tabla1[[#This Row],[Pqrs pendientes de trámite al final de cada mes]]","v":0}]
["marzo",179,240,15,47,1539,1,0,388,388,289,8,1,173,11,0,30,12,0,54,64,41,13,2,2,2,4,0,0,0,0,0,5,50,0,0,2,0,0,7,0,{"$f":"+Tabla1[[#This Row],[Dirección]]+Tabla1[[#This Row],[Subdirección de Registro Inmobiliario]]+Tabla1[[#This Row],[Subdirección de Gestión Inmobiliaria y de Espacio Público]]+Tabla1[[#This Row],[Oficina de  Control Disciplinario]]+Tabla1[[#This Row],[Oficina Jurídica]]+Tabla1[[#This Row],[Oficina Asesora de Planeación]]+Tabla1[[#This Row],[Oficina de tecnologias de las informacion y las comunicaciones ]]+Tabla1[[#This Row],[Oficina de Control Interno]]+Tabla1[[#This Row],[Atención al ciudadano]]+Tabla1[[#This Row],[Subdirección de Gestión Corporativa]]","v":64},{"$f":"+Tabla1[[#This Row],[Pqrs pendientes de trámite al final de cada mes]]","v":64}]
["abril",128,190,8,42,1290,1,0,349,349,280,7,0,163,14,0,36,13,0,47,54,28,19,1,0,1,5,0,0,0,0,0,18,30,3,0,1,0,0,2,0,{"$f":"+Tabla1[[#This Row],[Dirección]]+Tabla1[[#This Row],[Subdirección de Registro Inmobiliario]]+Tabla1[[#This Row],[Subdirección de Gestión Inmobiliaria y de Espacio Público]]+Tabla1[[#This Row],[Oficina de  Control Disciplinario]]+Tabla1[[#This Row],[Oficina Jurídica]]+Tabla1[[#This Row],[Oficina Asesora de Planeación]]+Tabla1[[#This Row],[Oficina de tecnologias de las informacion y las comunicaciones ]]+Tabla1[[#This Row],[Oficina de Control Interno]]+Tabla1[[#This Row],[Atención al ciudadano]]+Tabla1[[#This Row],[Subdirección de Gestión Corporativa]]","v":54},{"$f":"+Tabla1[[#This Row],[Pqrs pendientes de trámite al final de cada mes]]","v":54}]
["mayo",99,229,10,59,1592,0,0,382,382,267,10,0,148,8,0,45,8,0,48,68,40,19,0,1,1,7,0,0,0,0,0,11,48,0,0,3,0,0,6,0,{"$f":"+Tabla1[[#This Row],[Dirección]]+Tabla1[[#This Row],[Subdirección de Registro Inmobiliario]]+Tabla1[[#This Row],[Subdirección de Gestión Inmobiliaria y de Espacio Público]]+Tabla1[[#This Row],[Oficina de  Control Disciplinario]]+Tabla1[[#This Row],[Oficina Jurídica]]+Tabla1[[#This Row],[Oficina Asesora de Planeación]]+Tabla1[[#This Row],[Oficina de tecnologias de las informacion y las comunicaciones ]]+Tabla1[[#This Row],[Oficina de Control Interno]]+Tabla1[[#This Row],[Atención al ciudadano]]+Tabla1[[#This Row],[Subdirección de Gestión Corporativa]]","v":68},{"$f":"+Tabla1[[#This Row],[Pqrs pendientes de trámite al final de cada mes]]","v":68}]
["junio",null,null,null,null,null,null,null,null,null,null,null,null,null,null,null,null,null,null,null,null,null,null,null,null,null,null,null,null,null,null,null,null,null,null,null,null,null,null,null,null,{"$f":"+Tabla1[[#This Row],[Dirección]]+Tabla1[[#This Row],[Subdirección de Registro Inmobiliario]]+Tabla1[[#This Row],[Subdirección de Gestión Inmobiliaria y de Espacio Público]]+Tabla1[[#This Row],[Oficina de  Control Disciplinario]]+Tabla1[[#This Row],[Oficina Jurídica]]+Tabla1[[#This Row],[Oficina Asesora de Planeación]]+Tabla1[[#This Row],[Oficina de tecnologias de las informacion y las comunicaciones ]]+Tabla1[[#This Row],[Oficina de Control Interno]]+Tabla1[[#This Row],[Atención al ciudadano]]+Tabla1[[#This Row],[Subdirección de Gestión Corporativa]]","v":0},{"$f":"+Tabla1[[#This Row],[Pqrs pendientes de trámite al final de cada mes]]","v":0}]
["julio",null,null,null,null,null,null,null,null,null,null,null,null,null,null,null,null,null,null,null,null,null,null,null,null,null,null,null,null,null,null,null,null,null,null,null,null,null,null,null,null,{"$f":"+Tabla1[[#This Row],[Dirección]]+Tabla1[[#This Row],[Subdirección de Registro Inmobiliario]]+Tabla1[[#This Row],[Subdirección de Gestión Inmobiliaria y de Espacio Público]]+Tabla1[[#This Row],[Oficina de  Control Disciplinario]]+Tabla1[[#This Row],[Oficina Jurídica]]+Tabla1[[#This Row],[Oficina Asesora de Planeación]]+Tabla1[[#This Row],[Oficina de tecnologias de las informacion y las comunicaciones ]]+Tabla1[[#This Row],[Oficina de Control Interno]]+Tabla1[[#This Row],[Atención al ciudadano]]+Tabla1[[#This Row],[Subdirección de Gestión Corporativa]]","v":0},{"$f":"+Tabla1[[#This Row],[Pqrs pendientes de trámite al final de cada mes]]","v":0}]
["agosto",null,null,null,null,null,null,null,null,null,null,null,null,null,null,null,null,null,null,null,null,null,null,null,null,null,null,null,null,null,null,null,null,null,null,null,null,null,null,null,null,{"$f":"+Tabla1[[#This Row],[Dirección]]+Tabla1[[#This Row],[Subdirección de Registro Inmobiliario]]+Tabla1[[#This Row],[Subdirección de Gestión Inmobiliaria y de Espacio Público]]+Tabla1[[#This Row],[Oficina de  Control Disciplinario]]+Tabla1[[#This Row],[Oficina Jurídica]]+Tabla1[[#This Row],[Oficina Asesora de Planeación]]+Tabla1[[#This Row],[Oficina de tecnologias de las informacion y las comunicaciones ]]+Tabla1[[#This Row],[Oficina de Control Interno]]+Tabla1[[#This Row],[Atención al ciudadano]]+Tabla1[[#This Row],[Subdirección de Gestión Corporativa]]","v":0},{"$f":"+Tabla1[[#This Row],[Pqrs pendientes de trámite al final de cada mes]]","v":0}]
["septiembre",null,null,null,null,null,null,null,null,null,null,null,null,null,null,null,null,null,null,null,null,null,null,null,null,null,null,null,null,null,null,null,null,null,null,null,null,null,null,null,null,{"$f":"+Tabla1[[#This Row],[Dirección]]+Tabla1[[#This Row],[Subdirección de Registro Inmobiliario]]+Tabla1[[#This Row],[Subdirección de Gestión Inmobiliaria y de Espacio Público]]+Tabla1[[#This Row],[Oficina de  Control Disciplinario]]+Tabla1[[#This Row],[Oficina Jurídica]]+Tabla1[[#This Row],[Oficina Asesora de Planeación]]+Tabla1[[#This Row],[Oficina de tecnologias de las informacion y las comunicaciones ]]+Tabla1[[#This Row],[Oficina de Control Interno]]+Tabla1[[#This Row],[Atención al ciudadano]]+Tabla1[[#This Row],[Subdirección de Gestión Corporativa]]","v":0},{"$f":"+Tabla1[[#This Row],[Pqrs pendientes de trámite al final de cada mes]]","v":0}]
["octubre",null,null,null,null,null,null,null,null,null,null,null,null,null,null,null,null,null,null,null,null,null,null,null,null,null,null,null,null,null,null,null,null,null,null,null,null,null,null,null,null,{"$f":"+Tabla1[[#This Row],[Dirección]]+Tabla1[[#This Row],[Subdirección de Registro Inmobiliario]]+Tabla1[[#This Row],[Subdirección de Gestión Inmobiliaria y de Espacio Público]]+Tabla1[[#This Row],[Oficina de  Control Disciplinario]]+Tabla1[[#This Row],[Oficina Jurídica]]+Tabla1[[#This Row],[Oficina Asesora de Planeación]]+Tabla1[[#This Row],[Oficina de tecnologias de las informacion y las comunicaciones ]]+Tabla1[[#This Row],[Oficina de Control Interno]]+Tabla1[[#This Row],[Atención al ciudadano]]+Tabla1[[#This Row],[Subdirección de Gestión Corporativa]]","v":0},{"$f":"+Tabla1[[#This Row],[Pqrs pendientes de trámite al final de cada mes]]","v":0}]
["noviembre",null,null,null,null,null,null,null,null,null,null,null,null,null,null,null,null,null,null,null,null,null,null,null,null,null,null,null,null,null,null,null,null,null,null,null,null,null,null,null,null,{"$f":"+Tabla1[[#This Row],[Dirección]]+Tabla1[[#This Row],[Subdirección de Registro Inmobiliario]]+Tabla1[[#This Row],[Subdirección de Gestión Inmobiliaria y de Espacio Público]]+Tabla1[[#This Row],[Oficina de  Control Disciplinario]]+Tabla1[[#This Row],[Oficina Jurídica]]+Tabla1[[#This Row],[Oficina Asesora de Planeación]]+Tabla1[[#This Row],[Oficina de tecnologias de las informacion y las comunicaciones ]]+Tabla1[[#This Row],[Oficina de Control Interno]]+Tabla1[[#This Row],[Atención al ciudadano]]+Tabla1[[#This Row],[Subdirección de Gestión Corporativa]]","v":0},{"$f":"+Tabla1[[#This Row],[Pqrs pendientes de trámite al final de cada mes]]","v":0}]
["diciembre",null,null,null,null,null,null,null,null,null,null,null,null,null,null,null,null,null,null,null,null,null,null,null,null,null,null,null,null,null,null,null,null,null,null,null,null,null,null,null,null,{"$f":"+Tabla1[[#This Row],[Dirección]]+Tabla1[[#This Row],[Subdirección de Registro Inmobiliario]]+Tabla1[[#This Row],[Subdirección de Gestión Inmobiliaria y de Espacio Público]]+Tabla1[[#This Row],[Oficina de  Control Disciplinario]]+Tabla1[[#This Row],[Oficina Jurídica]]+Tabla1[[#This Row],[Oficina Asesora de Planeación]]+Tabla1[[#This Row],[Oficina de tecnologias de las informacion y las comunicaciones ]]+Tabla1[[#This Row],[Oficina de Control Interno]]+Tabla1[[#This Row],[Atención al ciudadano]]+Tabla1[[#This Row],[Subdirección de Gestión Corporativa]]","v":0},{"$f":"+Tabla1[[#This Row],[Pqrs pendientes de trámite al final de cada mes]]","v":0}]
["Acumulado año",{"$f":"+B4+B5+B6+B7+B8+B9+B10+B11+B12+B13+B14+B15","v":686},{"$f":"+C4+C5+C6+C7+C8+C9+C10+C11+C12+C13+C14+C15","v":1104},68,220,6724,10,0,{"$f":"+I4+I5+I6+I7+I8+I9+I10+I11+I12+I13+I14+I15","v":1775},{"$f":"+J15+J14+J13+J12+J11+J10+J9+J7+J8+J6+J5+J4","v":1775},{"$f":"+K15+K14+K13+K12+K11+K10+K9+K8+K7+K6+K5+K4","v":1349},51,3,780,44,0,164,47,2,258,298,171,86,4,9,5,22,0,0,0,1,1,60,201,3,1,8,0,0,24,0,{"$f":"+AP15+AP14+AP13+AP12+AP11+AP10+AP9+AP8+AP7+AP6+AP5+AP4","v":298},{"$f":"+Tabla1[[#This Row],[Pqrs pendientes de trámite al final de cada mes]]","v":298}]

{"sheet":"Tablas dinámicas","index":2,"n_rows":110,"n_cols":11,"rows_kept":110,"cut":false,"hidden":false,"merged":[[0,6,2,9],[0,1,1,4],[2,1,2,4]]}
[null,"Regresar "]
[]
[null,"al Dashboard"]
["Cantidad de atenciones brindadas a la ciudadanía por canal"]
[]
["Etiquetas de fila","Suma de Presencial",null,"Etiquetas de fila","Suma de Telefónico",null,"Etiquetas de fila","Suma de Redes sociales",null,"Etiquetas de fila","Suma de Chat"]
["mayo",99,null,"mayo",229,null,"mayo",10,null,"mayo",59]
["Total general",99,null,"Total general",229,null,"Total general",10,null,"Total general",59]
[]
[]
[]
[]
[]
[]
[]
[]
[]
[]
[]
[]
[null,{"$f":"+GETPIVOTDATA(\"Presencial\",$A$6)","v":99}]
[]
["Etiquetas de fila","Suma de Correo electrónico",null,"Etiquetas de fila","Suma de Ventanilla de radicación",null,"Etiquetas de fila","Suma de Buzón de sugerencias",null,"Etiquetas de fila","Suma de Bogotá te escucha"]
["mayo",1592,null,"mayo",0,null,"mayo",0,null,"mayo",382]
["Total general",1592,null,"Total general",0,null,"Total general",0,null,"Total general",382]
[]
[]
[]
[]
[]
[]
[]
[]
[]
[]
[]
[]
[]
[]
["Cantidad de PQRS recibidas y trasladadas"]
[]
["Etiquetas de fila","Suma de Pqrs recibidas",null,"Etiquetas de fila","Suma de Pqrs trasladadas",null,null,"Etiquetas de columna"]
["mayo",382,null,"mayo",267,null,"Valores","mayo","Total general"]
["Total general",382,null,"Total general",267,null,"Secretaría de Movilidad.",10,10]
[null,null,null,null,null,null,"Secretaría de Desarrollo Económico.",0,0]
[null,null,null,null,null,null,"Secretaría de Gobierno.",148,148]
[null,null,null,null,null,null,"Secretaría de Ambiente.",8,8]
[null,null,null,null,null,null,"Recreación y Deporte -IDRD.",8,8]
[null,null,null,null,null,null,"Participación y Acción Comunal - IDPAC.",0,0]
[null,null,null,null,null,null,"Instituto para la Economía Social - IPES.",45,45]
[null,null,null,null,null,null,"Otra entidad destinataria.",48,48]
[]
[]
[]
[]
[]
[]
[]
["Cantidad de PQRSD por tipología pendientes de trámite"]
[]
[null,"Etiquetas de columna"]
["Valores","mayo","Total general"]
["Derecho de petición de interés particular.",40,40]
["Derecho de petición de interés general.",19,19]
["Reclamo.",0,0]
["Queja.",1,1]
["Solicitud de acceso a la información.",1,1]
["Consulta.",7,7]
["Felicitación.",0,0]
["Solicitud de copias.",0,0]
["Sugerencias.",0,0]
["Denuncia por actos de corrupción.",0,0]
[]
[]
["PQRSD pendientes de trámite al final del mes"]
[]
["Etiquetas de fila","Pqrs pendientes de trámite al final de cada mes."]
["mayo",68]
["Total general",68]
[]
[]
[]
[]
[]
[]
[]
[]
[]
[]
[]
[]
[]
[]
[]
[]
[]
[]
[]
[]
[]
[]
[]
[]
[]
[]
[]
[]
[null,"Etiquetas de columna"]
[null,"mayo","Total general"]
[" Atención al ciudadano",6,6]